bitfinex/quotes_ETHUSD_20250813
["timestamp","ask_amount","ask_price","bid_price","bid_amount"]
[1755079371264,1.12846,4688.3,4688.2,8.879]
[1755079371642,0.55,4688.1,4686.9,0.001]
[1755079371838,0.55,4687.9,4687.0,2.802]
[1755079372043,0.55,4687.7,4687.0,2.802]
[1755079372431,0.55,4687.7,4686.9,0.001]
[1755079372651,0.55,4687.5,4687.0,3.763]
[1755079373052,0.55,4687.3,4687.0,3.763]
[1755079373364,0.639385,4687.7,4687.1,2.6848]
[1755079373564,0.11426,4688.3,4687.2,3.0]
[1755079374438,0.55,4687.9,4687.2,3.0]
[1755079374638,0.002,4688.3,4687.4,3.0]
[1755079374948,0.002,4688.3,4687.5,2.3999]
[1755079375148,0.002,4688.3,4687.6,3.761]
[1755079375344,0.002,4688.3,4687.7,5.112]
[1755079375545,0.55,4687.9,4687.7,5.112]
[1755079376354,3.22075568,4687.8,4687.7,5.112]
[1755079376551,32.02075568,4687.8,4687.7,8.872]
[1755079377139,34.50515568,4687.8,4687.7,5.112]
[1755079377364,34.50515568,4687.8,4687.7,8.871]
[1755079377750,31.55655568,4687.8,4687.7,8.871]
[1755079378645,0.55,4687.7,4687.6,2.658]
[1755079378845,37.52672187,4687.7,4686.9,0.001]
[1755079379045,3.55,4687.2,4687.0,7.439]
[1755079379370,0.57156619,4687.2,4686.9,0.001]
[1755079379571,0.55,4687.0,4686.9,0.001]
[1755079379871,28.8,4687.0,4686.9,0.001]
[1755079380173,2.20655568,4687.7,4686.9,0.001]
[1755079380174,28.8,4687.6,4686.9,0.001]
[1755079380374,2.22812187,4687.5,4687.0,3.756]
[1755079380665,0.57156619,4687.5,4687.1,3.756]
[1755079380872,0.55,4687.5,4687.1,3.756]
[1755079381068,28.8,4687.6,4687.1,3.756]
[1755079381069,0.02156619,4687.4,4687.1,6.1775]
[1755079381370,29.2563,4687.3,4686.9,0.001]
[1755079381669,29.2563,4687.3,4683.3,4.29]
[1755079381670,3.39616619,4687.2,4683.3,4.29]
[1755079381971,0.55,4685.6,4685.0,0.1064]
[1755079382145,0.55,4685.4,4685.1,3.755]
[1755079382669,0.55,4685.4,4685.0,0.1064]
[1755079382670,0.02156619,4685.3,4685.0,0.1064]
[1755079382841,0.55,4685.4,4685.1,3.754]
[1755079383040,0.55,4685.4,4685.2,2.7064]
[1755079383274,0.55,4685.4,4685.3,0.1064]
[1755079383476,1.02729449,4685.4,4685.3,0.1064]
[1755079383687,1.04886068,4685.4,4685.3,3.8604]
[1755079383845,1.02729449,4685.4,4685.3,3.8604]
[1755079384177,1.02729449,4685.4,4685.0,0.1064]
[1755079384178,29.82729449,4685.4,4685.0,0.1064]
[1755079384357,29.82729449,4685.4,4684.1,2.4215]
[1755079384358,29.35,4685.4,4685.1,3.753]
[1755079384560,29.35,4685.4,4685.2,2.4215]
[1755079384869,29.35,4685.4,4685.1,3.753]
[1755079385055,28.8,4685.4,4685.3,3.1064]
[1755079385380,28.8,4685.4,4685.3,17.3368]
[1755079385548,28.8,4686.1,4685.4,3.0]
[1755079385753,28.8,4686.1,4685.6,3.0]
[1755079385948,28.8,4686.1,4685.4,3.0]
[1755079385949,28.8,4686.1,4685.8,3.0]
[1755079386184,28.8,4686.1,4685.4,3.0]
[1755079386477,0.55,4686.0,4685.9,6.752]
[1755079386656,0.55,4686.0,4685.9,3.752]
[1755079387902,0.55,4686.0,4685.8,0.1064]
[1755079388052,0.55,4686.0,4685.9,3.751]
[1755079388664,0.55,4686.0,4685.9,3.75]
[1755079388665,32.19616619,4686.0,4685.9,3.75]
[1755079388884,29.9127,4686.0,4685.9,3.75]
[1755079389383,29.4564,4686.0,4685.9,3.75]
[1755079389555,31.66295568,4686.0,4685.9,3.75]
[1755079389882,32.11925568,4686.0,4685.9,3.75]
[1755079390187,34.48755568,4686.0,4685.9,3.75]
[1755079390761,28.9064,4686.0,4685.9,3.75]
[1755079391091,43.85,4686.0,4685.9,3.75]
[1755079391587,43.3,4686.0,4685.9,3.75]
[1755079392486,43.3,4686.0,4685.9,9.5628]
[1755079392672,28.8,4686.0,4685.9,9.5628]
[1755079392876,0.4563,4687.7,4685.9,6.2749]
[1755079393078,0.1064,4687.3,4686.0,3.0]
[1755079393384,14.5,4686.1,4686.0,3.0]
[1755079393581,14.5,4686.1,4685.9,2.4215]
[1755079393774,0.55,4687.1,4686.0,6.8524]
[1755079393959,0.55,4686.9,4686.0,6.8524]
[1755079394165,0.55,4686.9,4686.7,0.1064]
[1755079394383,0.55,4686.9,4686.8,3.746]
[1755079394782,15.5063,4686.9,4686.8,3.746]
[1755079395090,15.05,4686.9,4686.8,3.745]
[1755079395386,15.05,4686.9,4686.8,11.517]
[1755079395603,15.5063,4686.9,4686.8,7.772]
[1755079395882,47.14184879,4686.9,4686.8,7.772]
[1755079396083,47.24824879,4686.9,4686.8,11.516]
[1755079396382,47.24824879,4686.9,4686.8,7.772]
[1755079396584,47.24824879,4686.9,4686.8,11.516]
[1755079396884,44.87994879,4686.9,4686.8,11.516]
[1755079397297,47.24824879,4686.9,4686.8,11.516]
[1755079397477,47.24824879,4686.9,4686.8,7.772]
[1755079397798,47.24824879,4686.9,4686.8,11.514]
[1755079398365,44.87994879,4686.9,4686.8,11.514]
[1755079398566,47.24824879,4686.9,4686.8,7.772]
[1755079398778,47.24824879,4686.9,4686.8,11.514]
[1755079399065,47.24824879,4686.9,4686.8,11.513]
[1755079399684,44.42364879,4686.9,4686.8,11.513]
[1755079399895,43.76724879,4686.9,4686.8,11.513]
[1755079400070,43.3,4686.9,4686.8,11.513]
[1755079400271,43.3,4686.9,4686.8,11.6194]
[1755079400967,43.3,4686.9,4686.8,14.3258]
[1755079401178,43.3,4686.9,4686.8,11.6668]
[1755079401574,43.3,4686.9,4686.8,5.2194]
[1755079401892,43.3,4686.9,4686.8,3.739]
[1755079402092,43.3,4686.9,4686.2,5.4215]
[1755079402303,43.3,4686.9,4686.6,0.001]
[1755079402596,43.3,4686.9,4686.7,3.738]
[1755079402810,43.3,4686.9,4686.6,0.001]
[1755079402962,43.3,4686.9,4686.8,3.738]
[1755079403398,43.3,4686.9,4686.8,6.1585]
[1755079403600,43.3,4686.9,4686.8,6.41606992]
[1755079404964,43.3,4686.9,4686.8,9.41606992]
[1755079405415,43.3,4686.9,4686.8,10.771]
[1755079405678,43.3,4686.9,4686.8,17.2124]
[1755079405975,28.8,4686.9,4686.8,14.5544]
[1755079406176,28.802,4687.0,4686.9,3.0]
[1755079406379,28.802,4687.0,4686.9,5.7064]
[1755079406801,28.802,4687.0,4686.9,5.4215]
[1755079406966,28.802,4687.0,4686.9,5.7064]
[1755079408300,28.802,4687.0,4686.8,3.735]
[1755079408506,28.802,4687.0,4686.9,5.4215]
[1755079408692,28.802,4687.0,4686.9,5.7064]
[1755079408894,16.43259694,4687.0,4686.9,6.2564]
[1755079409069,0.002,4687.5,4687.3,0.55]
[1755079409272,0.002,4687.9,4687.5,0.55]
[1755079409473,0.002,4687.9,4687.7,3.0]
[1755079409793,0.002,4687.9,4687.8,0.57133196]
[1755079409992,0.002,4688.3,4687.8,0.57133196]
[1755079410305,0.002,4688.3,4687.7,3.0]
[1755079410306,0.002,4688.3,4688.1,0.55]
[1755079410493,0.002,4688.3,4688.2,7.281]
[1755079411876,0.002,4688.3,4688.2,7.3874]
[1755079412284,0.002,4688.3,4688.2,3.1064]
[1755079412967,0.002,4688.3,4688.2,6.8344]
[1755079414504,0.002,4688.3,4688.2,0.1064]
[1755079414670,0.002,4688.3,4688.2,3.8324]
[1755079415183,0.002,4688.3,4688.2,0.1064]
[1755079415385,0.002,4688.3,4688.2,11.5994]
[1755079415579,0.002,4688.3,4688.2,14.5994]
[1755079418708,4.22492631,4688.0,4686.6,0.001]
[1755079418882,14.5,4687.0,4686.6,0.001]
[1755079419290,2.7081,4686.9,4686.6,0.001]
[1755079419606,16.43259694,4686.8,4686.7,1.102]
[1755079419971,33.64069694,4686.8,4686.7,1.102]
[1755079420179,31.38739694,4686.8,4686.7,1.102]
[1755079420499,33.64069694,4686.8,4686.7,1.102]
[1755079420701,30.93259694,4686.8,4686.7,1.102]
[1755079422624,16.43259694,4686.8,4686.7,1.102]
[1755079423805,16.43259694,4686.8,4686.7,6.72]
[1755079424632,16.43259694,4686.8,4686.7,6.719]
[1755079425199,19.14069694,4686.8,4686.7,6.719]
[1755079425404,19.14069694,4686.8,4686.7,14.487]
[1755079426206,19.14069694,4686.8,4686.7,11.487]
[1755079426411,16.43259694,4686.8,4686.7,14.486]
[1755079426819,16.43259694,4686.8,4686.7,14.5924]
[1755079428028,19.14069694,4686.8,4686.7,8.2174]
[1755079428231,19.14069694,4686.8,4686.7,11.9344]
[1755079428522,16.43259694,4686.8,4686.7,11.9344]
[1755079428732,30.93259694,4686.8,4686.7,11.9344]
[1755079429897,16.43259694,4686.8,4686.7,11.9344]
[1755079430605,16.43259694,4686.8,4686.7,6.8234]
[1755079431009,19.69069694,4686.8,4685.7,0.001]
[1755079434304,17.2081,4686.0,4685.9,6.8184]
[1755079434498,33.64069694,4686.0,4685.9,6.8184]
[1755079435408,30.93259694,4686.0,4685.9,14.5884]
[1755079435905,33.64069694,4686.0,4685.9,14.5884]
[1755079436110,33.64069694,4686.0,4685.9,14.5874]
[1755079436517,33.64069694,4686.0,4685.9,7.8764]
[1755079436708,33.64069694,4686.0,4685.9,11.5864]
[1755079437407,34.19069694,4686.0,4685.9,11.5864]
[1755079438603,35.34361615,4686.0,4685.9,11.479]
[1755079439440,34.19069694,4686.0,4685.9,11.479]
[1755079440213,34.19069694,4686.0,4685.9,7.77]
[1755079440409,34.19069694,4686.0,4685.9,11.478]
[1755079440733,34.29709694,4686.0,4685.9,11.478]
[1755079441935,34.29709694,4686.0,4685.9,11.476]
[1755079442137,36.42788499,4686.0,4685.9,11.476]
[1755079443739,36.42788499,4686.0,4685.9,7.77]
[1755079443959,36.42788499,4686.0,4685.9,11.476]
[1755079444152,36.42788499,4686.0,4685.9,11.475]
[1755079446317,36.42788499,4686.0,4685.9,7.77]
[1755079446566,36.42788499,4686.0,4685.9,8.817]
[1755079448464,35.87788499,4686.0,4685.9,8.817]
[1755079448621,35.77148499,4686.0,4685.9,5.114]
[1755079448822,36.32148499,4686.0,4685.9,8.815]
[1755079449861,34.19069694,4686.0,4685.9,5.114]
[1755079450223,0.55,4685.9,4685.4,0.001]
[1755079450425,0.02156619,4685.8,4685.5,5.114]
[1755079450630,0.55,4685.6,4685.4,0.001]
[1755079450838,15.07156619,4685.5,4685.4,0.001]
[1755079451060,20.12505568,4685.5,4685.4,0.001]
[1755079451571,20.12505568,4685.5,4685.4,0.184]
[1755079452940,20.12505568,4685.5,4685.4,0.001]
[1755079452941,39.55765262,4685.5,4685.4,0.001]
[1755079453139,39.75593892,4685.5,4685.4,0.184]
[1755079453572,39.84123392,4685.5,4685.4,0.001]
[1755079453859,39.55765262,4685.5,4685.4,0.358]
[1755079454276,0.55,4685.4,4685.2,0.001]
[1755079454483,5.82335971,4685.4,4685.3,0.272]
[1755079454806,16.43259694,4685.4,4685.3,0.272]
[1755079454941,30.93259694,4685.4,4685.3,0.272]
[1755079455350,30.93259694,4685.4,4685.3,8.263]
[1755079455784,16.43259694,4685.4,4685.3,11.688]
[1755079456076,16.43259694,4685.4,4685.3,7.774]
[1755079456235,33.80109694,4685.4,4685.3,11.47]
[1755079456437,31.48259694,4685.4,4685.3,2.659]
[1755079456646,31.48259694,4685.4,4685.3,11.47]
[1755079458464,30.93259694,4685.4,4685.3,9.028]
[1755079458693,30.93259694,4685.4,4685.3,9.1344]
[1755079458896,16.43259694,4685.4,4685.3,8.9174]
[1755079459081,16.43259694,4685.4,4685.3,0.1064]
[1755079459289,30.93259694,4685.4,4685.3,0.1064]
[1755079459498,0.55,4685.3,4685.2,0.001]
[1755079459671,0.55,4685.3,4685.2,3.517]
[1755079459871,0.55,4685.3,4685.2,3.694]
[1755079460072,0.55,4685.3,4685.2,0.001]
[1755079460290,1.0132,4685.3,4685.2,3.694]
[1755079460472,1.0132,4685.3,4685.2,0.001]
[1755079460673,2.03145995,4685.3,4685.2,0.001]
[1755079460900,20.86935689,4685.3,4685.2,0.001]
[1755079461104,21.04673972,4685.3,4685.2,0.001]
[1755079461263,21.04673972,4685.3,4685.2,0.585]
[1755079461465,35.54673972,4685.3,4685.2,1.023]
[1755079461672,35.54673972,4685.3,4685.2,1.438]
[1755079463165,35.54673972,4685.3,4682.9,0.217]
[1755079463393,5.84557089,4685.2,4683.0,0.217]
[1755079463595,2.9555047,4685.2,4685.1,0.361]
[1755079463799,17.4555047,4685.2,4685.1,0.361]
[1755079463963,14.69894902,4685.2,4685.1,0.361]
[1755079464286,30.93259694,4685.2,4685.1,0.361]
[1755079464470,30.93259694,4685.2,4685.1,1.125]
[1755079465284,30.93259694,4685.2,4685.1,3.785]
[1755079465486,30.93259694,4685.2,4685.1,8.9]
[1755079466703,30.93259694,4685.2,4685.1,7.776]
[1755079467199,31.48259694,4685.2,4685.1,11.464]
[1755079467367,34.35145977,4685.2,4685.1,11.463]
[1755079467568,33.88825977,4685.2,4685.1,11.463]
[1755079467769,31.68170409,4685.2,4685.1,11.463]
[1755079468576,31.48259694,4685.2,4685.1,11.463]
[1755079468781,30.93259694,4685.2,4685.1,11.463]
[1755079469489,30.93259694,4685.2,4685.1,11.5694]
[1755079469686,30.93259694,4685.2,4685.1,11.5674]
[1755079469892,32.67907771,4685.2,4685.1,7.8824]
[1755079470081,32.67907771,4685.2,4685.1,11.5674]
[1755079470268,31.94109694,4685.2,4685.1,11.5674]
[1755079471092,30.93259694,4685.2,4685.1,11.461]
[1755079471394,30.93259694,4685.2,4685.1,11.7844]
[1755079471395,16.43259694,4685.2,4685.1,11.7844]
[1755079471592,16.21559694,4685.2,4685.1,11.7844]
[1755079472101,16.21559694,4685.2,4685.1,9.1244]
[1755079472399,16.21559694,4685.2,4685.1,7.0094]
[1755079473004,16.21559694,4685.2,4685.1,3.1074]
[1755079473208,16.21559694,4685.2,4685.1,6.7904]
[1755079474187,16.21559694,4685.2,4685.1,3.1074]
[1755079474590,16.21559694,4685.2,4685.1,6.7884]
[1755079474979,16.21559694,4685.2,4685.1,3.1074]
[1755079475291,16.21559694,4685.2,4685.1,5.7664]
[1755079475498,16.21559694,4685.2,4685.1,10.8804]
[1755079476014,16.21559694,4685.2,4685.1,8.9014]
[1755079476218,16.21559694,4685.2,4685.1,5.2214]
[1755079476519,30.71559694,4685.2,4685.1,3.7874]
[1755079478008,16.21559694,4685.2,4685.1,3.7874]
[1755079479215,16.21559694,4685.2,4685.1,6.7874]
[1755079479420,16.21559694,4685.2,4685.1,6.7844]
[1755079480110,30.71559694,4685.2,4685.1,3.1074]
[1755079480618,30.71559694,4685.2,4685.1,6.7834]
[1755079480819,30.71559694,4685.2,4685.1,3.1074]
[1755079481010,30.71559694,4685.2,4685.1,6.7834]
[1755079481796,33.42419694,4685.2,4685.1,3.7824]
[1755079485412,33.42419694,4685.2,4685.1,11.5554]
[1755079486133,33.42419694,4685.2,4685.1,7.8804]
[1755079486134,33.97419694,4685.2,4685.1,7.8804]
[1755079486336,36.18075262,4685.2,4685.1,11.5534]
[1755079486531,36.18075262,4685.2,4685.1,7.8804]
[1755079486734,33.97419694,4685.2,4685.1,11.5514]
[1755079490244,33.97419694,4685.2,4685.1,11.5504]
[1755079490446,33.97419694,4685.2,4685.1,2.7664]
[1755079490742,33.97419694,4685.2,4685.1,11.442]
[1755079490946,33.97419694,4685.2,4685.1,7.774]
[1755079491155,36.28715262,4685.2,4685.1,11.442]
[1755079491449,36.28715262,4685.2,4685.1,7.774]
[1755079491608,36.28715262,4685.2,4685.1,11.441]
[1755079492748,36.28715262,4685.2,4685.1,11.44]
[1755079493304,36.28715262,4685.2,4685.1,7.774]
[1755079493731,36.28715262,4685.2,4684.6,0.001]
[1755079493732,0.55,4685.1,4684.6,0.001]
[1755079493938,0.55,4684.9,4684.7,8.78]
[1755079494239,0.55,4684.8,4684.7,5.114]
[1755079494414,33.97419694,4684.8,4684.7,5.114]
[1755079494739,34.08059694,4684.8,4684.7,8.779]
[1755079495610,34.08059694,4684.8,4684.7,5.114]
[1755079495818,16.32199694,4684.8,4684.7,8.778]
[1755079496017,16.21559694,4684.8,4684.7,11.778]
[1755079496231,16.21559694,4684.8,4684.7,12.79403175]
[1755079496551,16.21559694,4684.8,4684.7,11.8844]
[1755079497137,16.21559694,4684.8,4684.7,6.7704]
[1755079497853,0.002,4685.4,4685.0,0.55]
[1755079498040,0.002,4685.4,4684.7,2.0]
[1755079498224,0.002,4685.4,4685.3,0.1064]
[1755079498624,0.002,4685.4,4685.3,3.7684]
[1755079499721,0.002,4685.4,4685.3,6.7684]
[1755079500134,0.002,4685.4,4685.3,3.1064]
[1755079500336,0.4667,4685.4,4685.3,0.1064]
[1755079500539,2.8959,4685.4,4685.3,3.7664]
[1755079500755,3.18569,4685.4,4685.3,3.7664]
[1755079500956,14.502,4685.4,4685.3,3.7664]
[1755079501159,17.3959,4685.4,4684.6,0.001]
[1755079501346,3.46546619,4685.3,4684.7,3.659]
[1755079501671,2.8939,4685.2,4684.7,3.659]
[1755079501870,14.5,4684.8,4684.6,0.001]
[1755079502170,0.4647,4685.1,4684.7,3.659]
[1755079502324,2.9792,4685.0,4684.7,3.659]
[1755079502524,2.8939,4684.9,4684.7,3.659]
[1755079502727,16.9292,4684.8,4684.7,3.659]
[1755079502934,17.3939,4684.8,4684.7,3.659]
[1755079503137,14.9647,4684.8,4684.7,3.659]
[1755079503866,14.5,4684.8,4684.7,3.659]
[1755079504853,14.5,4684.8,4684.6,0.001]
[1755079505052,14.5,4684.8,4684.7,3.657]
[1755079505366,14.5,4684.8,4684.7,8.771]
[1755079505567,14.5,4684.8,4684.7,5.114]
[1755079505880,14.5,4684.8,4684.7,8.771]
[1755079506578,17.3939,4684.8,4684.7,5.114]
[1755079506784,17.3939,4684.8,4684.7,8.77]
[1755079507288,17.9439,4684.8,4684.7,8.77]
[1755079507571,14.9647,4684.8,4684.7,8.77]
[1755079508278,17.3939,4684.8,4684.7,8.77]
[1755079509037,14.5,4684.8,4684.7,8.77]
[1755079509275,14.9647,4684.8,4684.7,8.77]
[1755079509638,17.3939,4684.8,4684.7,8.77]
[1755079510076,17.3939,4684.8,4683.7,0.001]
[1755079510077,0.55,4684.7,4683.7,0.001]
[1755079510382,0.02156619,4684.6,4683.8,7.775]
[1755079510740,14.5,4683.9,4683.8,7.775]
[1755079510951,17.3939,4683.9,4683.8,7.775]
[1755079511360,14.5,4683.9,4683.8,7.775]
[1755079511559,14.5,4683.9,4683.8,7.8814]
[1755079511752,14.5,4683.9,4683.8,5.2214]
[1755079511949,14.5,4683.9,4683.8,8.8744]
[1755079513372,17.3939,4683.9,4683.8,8.8744]
[1755079514051,14.5,4683.9,4683.8,8.8744]
[1755079515973,14.5,4683.9,4683.8,5.2214]
[1755079516161,14.5,4683.9,4683.8,8.8714]
[1755079516483,17.3939,4683.9,4683.8,8.8714]
[1755079516685,17.3939,4683.9,4683.8,5.2214]
[1755079517186,17.3939,4683.9,4683.8,8.8704]
[1755079518283,17.3939,4683.9,4683.8,5.2214]
[1755079518485,14.5,4683.9,4683.8,8.8694]
[1755079518850,17.3939,4683.9,4683.8,5.2214]
[1755079519054,17.3939,4683.9,4683.8,8.8694]
[1755079519893,17.3939,4683.9,4683.8,8.8684]
[1755079520265,17.3939,4683.9,4683.8,8.762]
[1755079520469,17.62748767,4683.9,4683.8,8.762]
[1755079520672,18.17748767,4683.9,4683.8,8.762]
[1755079520998,18.28388767,4683.9,4683.8,8.762]
[1755079522719,18.28388767,4683.9,4683.8,5.115]
[1755079522858,18.28388767,4683.9,4683.8,5.116]
[1755079524198,0.55,4683.8,4683.7,0.001]
[1755079524413,5.34885496,4683.8,4683.7,5.444]
[1755079524588,5.34885496,4683.8,4683.7,5.116]
[1755079524589,3.4439,4683.8,4683.7,5.116]
[1755079524793,17.9439,4683.8,4683.3,0.001]
[1755079525095,0.6564,4683.4,4683.3,0.001]
[1755079525300,0.67796619,4683.4,4683.3,0.001]
[1755079525600,3.57186619,4683.4,4683.3,5.117]
[1755079525784,3.90748662,4683.4,4683.3,8.761]
[1755079526108,3.5503,4683.4,4683.3,8.761]
[1755079526606,3.5503,4683.4,4680.1,0.1085]
[1755079526607,0.55,4683.3,4680.1,0.1085]
[1755079526812,0.55,4683.3,4681.7,0.1064]
[1755079526813,0.1064,4682.3,4681.7,0.1064]
[1755079527115,0.55,4683.1,4681.8,3.642]
[1755079527418,0.55,4682.1,4681.9,3.642]
[1755079527567,0.55,4682.1,4682.0,3.642]
[1755079527771,3.4439,4682.1,4682.0,3.642]
[1755079528097,15.5147,4682.1,4682.0,3.642]
[1755079528506,17.9439,4682.1,4682.0,3.642]
[1755079529209,17.9439,4682.1,4681.3,0.1072]
[1755079529371,3.4439,4682.1,4681.4,3.642]
[1755079529568,3.4439,4682.1,4681.8,0.001]
[1755079529774,14.5,4681.9,4681.8,0.001]
[1755079530173,14.9655,4681.9,4681.8,0.001]
[1755079530575,14.5,4681.9,4681.8,0.001]
[1755079531202,14.5,4681.9,4681.8,0.1074]
[1755079531706,20.43222595,4683.9,4681.8,0.1074]
[1755079531707,0.1064,4682.8,4681.8,0.1074]
[1755079531891,0.1064,4683.5,4682.7,0.1064]
[1755079532070,0.1064,4683.5,4682.8,3.64]
[1755079532278,14.5,4682.9,4682.8,3.64]
[1755079532478,14.5,4682.9,4682.8,3.7464]
[1755079533379,14.5,4682.9,4682.8,3.7454]
[1755079533924,0.1064,4684.0,4682.8,6.7454]
[1755079534110,0.002,4684.6,4683.9,0.1064]
[1755079534317,0.29855,4684.6,4683.9,0.1064]
[1755079534520,14.5,4684.4,4684.0,3.638]
[1755079535090,14.5,4684.4,4684.3,0.1064]
[1755079535330,14.5,4684.4,4684.3,5.2234]
[1755079535828,0.002,4684.6,4684.3,5.2234]
[1755079536031,0.002,4684.6,4684.3,5.3319]
[1755079536521,0.002,4684.6,4684.5,0.1064]
[1755079538093,0.002,4684.6,4684.5,3.7424]
[1755079538720,2.8591,4684.6,4684.5,3.7414]
[1755079539724,3.15565,4684.6,4684.5,3.634]
[1755079539934,17.65565,4684.6,4684.3,5.2234]
[1755079540131,14.79855,4684.6,4684.5,3.634]
[1755079540438,14.79855,4684.6,4684.3,5.2234]
[1755079540631,0.29855,4684.6,4684.5,3.633]
[1755079540819,0.002,4684.6,4684.5,3.633]
[1755079541024,14.502,4684.6,4684.5,3.633]
[1755079541332,0.55,4684.5,4684.3,5.117]
[1755079541552,0.6564,4684.4,4684.3,5.117]
[1755079541744,3.5135,4684.4,4684.3,5.117]
[1755079542039,18.36505,4684.4,4684.3,8.749]
[1755079542734,18.36505,4684.4,4684.3,5.116]
[1755079543109,0.55,4684.3,4683.1,0.1064]
[1755079543309,0.55,4684.0,4683.2,5.116]
[1755079543631,2.87866619,4684.2,4683.2,5.116]
[1755079543632,0.55,4683.6,4683.2,5.116]
[1755079543809,14.5,4683.3,4683.2,5.116]
[1755079544014,14.5,4683.3,4683.2,8.747]
[1755079544232,17.9071,4683.3,4683.2,5.116]
[1755079544534,18.0135,4683.3,4683.2,8.747]
[1755079544702,18.0135,4683.3,4683.2,5.116]
[1755079544898,19.85020066,4683.3,4683.2,5.116]
[1755079545408,19.85020066,4683.3,4683.2,8.746]
[1755079548441,19.85020066,4683.3,4683.2,5.116]
[1755079548643,19.85020066,4683.3,4683.2,8.745]
[1755079548832,19.85020066,4683.3,4683.2,5.117]
[1755079549243,0.55,4683.2,4682.3,0.001]
[1755079549417,0.55,4682.4,4682.3,0.001]
[1755079549848,15.5155,4682.4,4682.3,0.001]
[1755079550144,17.9071,4682.4,4682.3,0.387]
[1755079550343,15.5155,4682.4,4682.3,0.387]
[1755079550550,14.5,4682.4,4682.3,0.387]
[1755079550746,14.5,4682.4,4682.3,0.4934]
[1755079552501,3.002,4684.6,4682.3,0.6019]
[1755079552502,0.1064,4683.9,4682.3,0.6019]
[1755079552751,0.1064,4683.9,4683.3,0.1064]
[1755079553419,14.5,4683.4,4683.3,0.1064]
[1755079555354,14.5,4683.4,4683.3,5.2234]
[1755079556850,14.5,4683.4,4683.3,8.2234]
[1755079557152,14.5,4683.4,4683.3,8.3319]
[1755079558484,14.5,4683.4,4683.3,8.2234]
[1755079560573,14.5,4683.4,4683.3,11.8434]
[1755079560792,0.002,4683.9,4683.3,11.8434]
[1755079560955,0.002,4683.9,4683.8,0.1064]
[1755079563155,0.002,4683.9,4683.8,0.2149]
[1755079564978,0.002,4683.9,4683.8,0.1064]
[1755079565379,0.002,4683.9,4683.8,10.8824]
[1755079565764,0.002,4683.9,4683.8,14.4984]
[1755079568275,0.002,4683.9,4683.8,11.732]
[1755079568492,0.002,4683.9,4683.8,11.8405]
[1755079573398,0.002,4683.9,4683.8,6.7245]
[1755079574798,0.002,4683.9,4683.8,6.616]
[1755079575274,0.002,4683.9,4683.8,9.275]
[1755079575480,0.002,4683.9,4683.8,14.39]
[1755079577111,0.002,4683.9,4683.8,11.731]
[1755079577785,0.002,4683.9,4683.8,8.115]
[1755079577966,0.002,4683.9,4683.8,11.722]
[1755079578166,0.002,4683.9,4683.8,7.157]
[1755079578470,0.002,4684.6,4684.2,0.7631]
[1755079578670,0.002,4684.6,4684.4,3.55]
[1755079578870,0.002,4684.8,4684.7,0.7631]
[1755079579071,0.002,4684.8,4684.7,7.38944608]
[1755079579271,0.002,4685.9,4684.8,3.7631]
[1755079579480,0.002,4685.9,4685.0,0.8695]
[1755079579700,0.002,4685.9,4685.0,7.4745]
[1755079579904,0.002,4685.9,4685.0,7.581]
[1755079581609,0.002,4685.1,4685.0,7.581]
[1755079582021,0.002,4685.9,4685.0,7.581]
[1755079582022,0.002,4685.9,4685.3,0.7631]
[1755079582203,6.76403529,4686.1,4685.5,3.55]
[1755079582551,6.76403529,4686.1,4685.9,0.55]
[1755079582807,0.002,4686.9,4686.1,3.55]
[1755079583011,0.4719,4686.8,4686.3,0.1064]
[1755079583318,2.3311,4686.9,4686.3,3.55]
[1755079583319,0.002,4686.9,4686.3,3.55]
[1755079583486,28.8,4687.8,4686.4,0.55]
[1755079583824,28.802,4687.9,4687.8,0.1064]
[1755079584002,28.802,4687.9,4687.8,6.7074]
[1755079584696,27.802,4687.9,4687.8,6.7074]
[1755079585329,30.603,4687.9,4687.8,14.4784]
[1755079586612,27.802,4687.9,4687.8,14.4784]
[1755079587000,30.603,4687.9,4687.8,14.4784]
[1755079587916,28.2739,4687.9,4687.8,14.4784]
[1755079588428,27.802,4687.9,4687.8,15.0284]
[1755079588930,27.802,4687.9,4687.8,11.8204]
[1755079589334,30.603,4687.9,4687.8,11.8154]
[1755079590720,30.603,4687.9,4687.8,12.1154]
[1755079591032,32.80955568,4687.9,4687.8,9.1154]
[1755079591403,30.603,4687.9,4687.8,9.1154]
[1755079592738,0.55,4687.8,4687.2,0.1064]
[1755079592934,0.55,4687.8,4684.8,0.639255]
[1755079593143,2.9065,4687.7,4687.1,0.1064]
[1755079593430,0.49266619,4687.6,4687.1,0.1064]
[1755079593630,2.20655568,4687.5,4687.1,0.1064]
[1755079593807,0.49266619,4687.4,4687.1,0.1064]